fUST/lending_fUST_20251123
["ID","MTS","AMOUNT","RATE_DAILY","PERIOD"]
[394685669,1763884244986,-250.0,0.00012366,2]
[394685670,1763884244995,-151.0,0.00012366,2]
[394685671,1763884245004,-333.3321944,0.00012366,2]
[394685672,1763884245014,-151.0,0.00012366,2]
[394685673,1763884245023,-151.0,0.00012366,2]
[394685674,1763884245032,-250.0,0.00012366,2]
[394685675,1763884245043,-500.0,0.00012366,2]
[394685676,1763884245052,-250.0,0.00012366,2]
[394685677,1763884245061,-259.3515141,0.00012366,2]
[394685678,1763884245070,-151.0,0.00012366,2]
[394685679,1763884245079,-500.0,0.00012366,2]
[394685680,1763884245088,-250.0,0.00012366,2]
[394685681,1763884245097,-153.32553677,0.00012366,2]
[394685682,1763884245106,-500.0,0.00012366,2]
[394685683,1763884245116,-250.0,0.00012366,2]
[394685684,1763884245126,-500.0,0.00012366,2]
[394685685,1763884245135,-250.0,0.00012366,2]
[394685686,1763884245144,-179.22394842,0.00012366,2]
[394685687,1763884245153,-151.0,0.00012366,2]
[394685688,1763884245163,-500.0,0.00012366,2]
[394685689,1763884245172,-250.0,0.00012366,2]
[394685690,1763884245181,-500.0,0.00012366,2]
[394685691,1763884245190,-151.0,0.00012366,2]
[394685692,1763884245200,-250.0,0.00012366,2]
[394685693,1763884245209,-500.0,0.00012366,2]
[394685694,1763884245218,-151.0,0.00012366,2]
[394685695,1763884245227,-250.0,0.00012366,2]
[394685696,1763884245236,-500.0,0.00012366,2]
[394685697,1763884245245,-151.0,0.00012366,2]
[394685698,1763884245255,-250.0,0.00012366,2]
[394685699,1763884245264,-500.0,0.00012366,2]
[394685700,1763884245273,-151.0,0.00012366,2]
[394685701,1763884245282,-250.0,0.00012366,2]
[394685702,1763884245291,-500.0,0.00012366,2]
[394685703,1763884245301,-249.96317567,0.00012366,2]
[394685704,1763884245310,-500.0,0.00012366,2]
[394685705,1763884245318,-500.0,0.00012366,2]
[394685706,1763884245327,-500.0,0.00012366,2]
[394685707,1763884245337,-500.0,0.00012366,2]
[394685708,1763884245346,-250.0,0.00012366,2]
[394685709,1763884245354,-250.0,0.00012366,2]
[394685710,1763884245364,-187.78006525,0.00012366,2]
[394685711,1763884245373,-250.0,0.00012366,2]
[394685712,1763884245383,-281.43786868,0.00012366,2]
[394685713,1763884245392,-500.0,0.00012372,2]
[394685714,1763884245402,-32374.66860349,0.00012373,2]
[394685715,1763884245411,-511.13276551,0.00012396,2]
[394685717,1763884246219,-500.0,0.00012365,2]
[394685718,1763884246228,-644.37443155,0.00012365,2]
[394685719,1763884246239,-114.96686782,0.00012396,2]
[394685720,1763884246248,-69.21073394,0.00012472,2]
[394685726,1763884351877,152.945062,0.00012,6]
[394685727,1763884352780,152.945062,0.00011989,6]
[394685733,1763884449910,3157.91,0.0002,30]
[394685734,1763884590632,223.164081,0.00012,6]
[394685736,1763884675382,1200.0,0.00012,6]
[394685737,1763884778806,190.63,0.00018249,30]
[394685738,1763884779269,381.26,0.00019118,30]
[394685739,1763884779669,571.89,0.00019987,30]
[394685740,1763884927823,165.090894,0.0001128,6]
[394685741,1763884952787,157.960706,0.00012,6]
[394685742,1763884953125,157.960706,0.00012,6]
[394685753,1763885389461,500.0,0.000201,120]
[394685757,1763885407326,1000.0,0.0002,30]
[394685803,1763885432327,-199.87672008,8.915e-05,2]
[394685807,1763885432337,-49.85463754,9.005e-05,2]
[394685911,1763885438492,-199.87672008,8.826e-05,2]
[394685912,1763885438506,-150.02208254,9.005e-05,2]
[394685913,1763885438519,-150.0,9.142e-05,2]
[394685914,1763885438533,-532.51030625,0.00010061,2]
[394685915,1763885438542,-165.090894,0.00010301,4]
[394685916,1763885438551,-353.29325365,0.00010909,2]
[394685917,1763885438561,-157.960706,0.00010958,4]
[394685918,1763885438570,-157.960706,0.00010958,4]
[394685919,1763885438580,-1200.0,0.00011068,2]
[394685920,1763885438590,-300.0,0.00011068,2]
[394685921,1763885438599,-300.0,0.00011069,2]
[394685922,1763885438608,-300.0,0.00011069,2]
[394685923,1763885438617,-300.0,0.00011069,2]
[394685924,1763885438627,-300.0,0.00011069,2]
[394685925,1763885438914,-300.0,0.00011069,2]
[394685926,1763885438950,-300.0,0.00011069,2]
[394685927,1763885438960,-300.0,0.00011069,2]
[394685928,1763885438969,-300.0,0.00011069,2]
[394685929,1763885438979,-300.0,0.00011069,2]
[394685930,1763885438989,-300.0,0.00011069,2]
[394685931,1763885439000,-300.0,0.00011069,2]
[394685932,1763885439009,-300.0,0.00011069,2]
[394685933,1763885439019,-300.0,0.00011069,2]
[394685934,1763885439028,-300.0,0.00011069,2]
[394685935,1763885439039,-300.0,0.00011069,2]
[394685936,1763885439048,-225.747,0.00011069,2]
[394685937,1763885439058,-50000.0,0.00011069,2]
[394685938,1763885439067,-177.0,0.00011142,2]
[394685939,1763885439077,-600.0,0.00011289,2]
[394685940,1763885439086,-165.090894,0.00011507,2]
[394685941,1763885439096,-1965.09515747,0.0001157,2]
[394685942,1763885439105,-1965.09515747,0.0001186,2]
[394685943,1763885439116,-187.78006525,0.00012055,2]
[394685944,1763885439125,-500.0,0.00012061,2]
[394685945,1763885439135,-608.37062305,0.00012061,2]
[394685946,1763885439145,-500.0,0.00012061,2]
[394685947,1763885439154,-500.0,0.00012061,2]
[394685948,1763885439164,-500.0,0.00012061,2]
[394685949,1763885439174,-500.0,0.00012061,2]
[394685950,1763885439184,-321.37100316,0.00012061,2]
[394685951,1763885439193,-500.0,0.00012061,2]
[394685952,1763885439203,-500.0,0.00012061,2]
[394685953,1763885439217,-378.50957279,0.00012061,2]
[394685954,1763885439227,-500.0,0.00012061,2]
[394685955,1763885439236,-500.0,0.00012061,2]
[394685956,1763885439245,-500.0,0.00012061,2]
[394685957,1763885439255,-500.0,0.00012061,2]
[394685958,1763885439264,-500.0,0.00012061,2]
[394685959,1763885439274,-500.0,0.00012061,2]
[394685960,1763885439285,-500.0,0.00012061,2]
[394685961,1763885439300,-500.0,0.00012061,2]
[394685962,1763885439309,-500.0,0.00012061,2]
[394685963,1763885439318,-500.0,0.00012061,2]
[394685964,1763885439327,-500.0,0.00012061,2]
[394685965,1763885439337,-214869.31749196,0.00012062,2]
[394685966,1763885439349,-531.34474643,0.00012062,2]
[394685967,1763885439360,-132881.03945051,0.00012062,2]
[394685968,1763885439370,-2253.55238905,0.00012063,2]
[394685969,1763885439379,-1000.0,0.00012064,2]
[394685970,1763885439388,-1000.0,0.00012064,2]
[394685971,1763885439399,-1000.0,0.00012064,2]
[394685972,1763885439408,-1000.0,0.00012064,2]
[394685973,1763885439418,-1000.0,0.00012064,2]
[394685974,1763885439427,-1000.0,0.00012064,2]
[394685975,1763885439437,-1000.0,0.00012064,2]
[394685976,1763885439447,-250.0,0.00012064,2]
[394685977,1763885439457,-514.84070869,0.00012064,2]
[394685978,1763885439467,-500.0,0.00012064,2]
[394685979,1763885439476,-199.1008196,0.00012064,2]
[394685980,1763885439486,-250.0,0.00012064,2]
[394685981,1763885439495,-500.0,0.00012064,2]
[394685982,1763885439505,-250.0,0.00012064,2]
[394685983,1763885439514,-500.0,0.00012064,2]
[394685984,1763885439523,-151.0,0.00012064,2]
[394685985,1763885439533,-500.0,0.00012064,2]
[394685986,1763885439542,-151.0,0.00012064,2]
[394685987,1763885439551,-500.0,0.00012064,2]
[394685988,1763885439561,-151.0,0.00012064,2]
[394685989,1763885439570,-250.0,0.00012064,2]
[394685990,1763885439580,-500.0,0.00012064,2]
[394685991,1763885439590,-151.0,0.00012064,2]
[394685992,1763885439599,-250.0,0.00012064,2]
[394685993,1763885439608,-500.0,0.00012064,2]
[394685994,1763885439617,-151.0,0.00012064,2]
[394685995,1763885439626,-250.0,0.00012064,2]
[394685996,1763885439635,-151.0,0.00012064,2]
[394685997,1763885439644,-500.0,0.00012064,2]
[394685998,1763885439653,-151.0,0.00012064,2]
[394685999,1763885439663,-250.0,0.00012064,2]
[394686000,1763885439672,-151.0,0.00012064,2]
[394686001,1763885439681,-500.0,0.00012064,2]
[394686002,1763885439691,-151.0,0.00012064,2]
[394686003,1763885439701,-250.0,0.00012064,2]
[394686004,1763885439710,-151.0,0.00012064,2]
[394686005,1763885439720,-500.0,0.00012064,2]
[394686006,1763885439729,-151.0,0.00012064,2]
[394686007,1763885439739,-250.0,0.00012064,2]
[394686008,1763885439748,-151.0,0.00012064,2]
[394686009,1763885439758,-500.0,0.00012064,2]
[394686010,1763885439767,-151.0,0.00012064,2]
[394686011,1763885439776,-250.0,0.00012064,2]
[394686012,1763885439787,-151.0,0.00012064,2]
[394686013,1763885439796,-500.0,0.00012064,2]
[394686014,1763885439806,-163.44618027,0.00012064,2]
[394686015,1763885439816,-187.78006525,0.00012064,2]
[394686016,1763885439826,-250.0,0.00012064,2]
[394686017,1763885439836,-250.0,0.00012064,2]
[394686018,1763885439846,-263.45154327,0.00012064,2]
[394686019,1763885439855,-500.0,0.00012064,2]
[394686020,1763885439865,-250.0,0.00012064,2]
[394686021,1763885439875,-500.0,0.00012064,2]
[394686022,1763885439884,-250.0,0.00012064,2]
[394686023,1763885439893,-250.0,0.00012064,2]
[394686024,1763885439904,-250.0,0.00012064,2]
[394686025,1763885439915,-250.0,0.00012064,2]
[394686026,1763885439930,-250.0,0.00012064,2]
[394686027,1763885439951,-250.0,0.00012064,2]
[394686028,1763885439960,-250.0,0.00012064,2]
[394686029,1763885439974,-250.0,0.00012064,2]
[394686030,1763885439983,-250.0,0.00012064,2]
[394686031,1763885439993,-306.16492558,0.00012064,2]
[394686032,1763885440002,-250.0,0.00012064,2]
[394686033,1763885440012,-250.0,0.00012064,2]
[394686034,1763885440021,-250.0,0.00012064,2]
[394686035,1763885440030,-250.0,0.00012064,2]
[394686037,1763885440039,-250.0,0.00012064,2]
[394686038,1763885440048,-250.0,0.00012064,2]
[394686039,1763885440058,-14321.88545626,0.00012064,2]
[394686040,1763885440067,-250.0,0.00012064,2]
[394686041,1763885440078,-250.0,0.00012064,2]
[394686042,1763885440090,-250.0,0.00012064,2]
[394686043,1763885440101,-250.0,0.00012064,2]
[394686044,1763885440113,-250.0,0.00012064,2]
[394686045,1763885440122,-250.0,0.00012064,2]
[394686046,1763885440132,-250.0,0.00012064,2]
[394686047,1763885440141,-250.0,0.00012064,2]
[394686048,1763885440151,-250.0,0.00012064,2]
[394686049,1763885440160,-250.0,0.00012064,2]
[394686050,1763885440170,-250.0,0.00012064,2]
[394686051,1763885440179,-250.0,0.00012064,2]
[394686052,1763885440188,-250.0,0.00012064,2]
[394686053,1763885440197,-250.0,0.00012064,2]
[394686054,1763885440210,-250.0,0.00012064,2]
[394686056,1763885440219,-339.69479083,0.00012064,2]
[394686058,1763885440228,-500.0,0.00012075,2]
[394686059,1763885440237,-1965.09515747,0.0001215,2]
[394686063,1763885440247,-420.0,0.00012162,2]
[394686066,1763885440256,-1680.0,0.00012175,2]
[394686069,1763885440266,-523.96,0.00012329,2]
[394686072,1763885440275,-500.0,0.00012349,2]
[394686074,1763885440285,-151.0,0.00012365,2]
[394686076,1763885440297,-1502.818616,0.00012365,2]
[394686078,1763885440306,-1502.818616,0.00012365,2]
[394686080,1763885440316,-1502.818616,0.00012365,2]
[394686082,1763885440325,-1502.818616,0.00012365,2]
[394686084,1763885440335,-236.719389,0.00012365,2]
[394686086,1763885440344,-11545.162394,0.00012371,2]
[394686088,1763885440355,-920.72542,0.00012371,2]
[394686091,1763885440365,-3150.8737234,0.00012371,2]
[394686093,1763885440375,-9072.85268616,0.00012371,2]
[394686110,1763885440873,-1189.689954,0.00012075,2]
[394686111,1763885440883,-2206.60338095,0.00012146,2]
[394686112,1763885440892,-2722.78602491,0.00012271,2]
[394686113,1763885440902,-70.38913794,0.00012371,2]
[394686114,1763885440911,-1502.818616,0.00012371,2]
[394686115,1763885440922,-1502.818616,0.00012371,2]
[394686116,1763885440932,-1502.818616,0.00012371,2]
[394686117,1763885440941,-1502.818616,0.00012371,2]
[394686118,1763885440951,-1189.689954,0.00012371,2]
[394686119,1763885440961,-500.0,0.00012373,2]
[394686120,1763885440970,-607.6061764,0.00012373,2]
[394686121,1763885440980,-500.0,0.00012373,2]
[394686122,1763885440989,-500.0,0.00012373,2]
[394686123,1763885440998,-509.29764209,0.00012373,2]
[394686124,1763885441008,-500.0,0.00012373,2]
[394686125,1763885441017,-506.55512657,0.00012373,2]
[394686126,1763885441026,-500.0,0.00012373,2]
[394686127,1763885441036,-500.0,0.00012373,2]
[394686128,1763885441045,-500.0,0.00012373,2]
[394686129,1763885441054,-500.0,0.00012373,2]
[394686130,1763885441064,-500.0,0.00012373,2]
[394686131,1763885441073,-158.62386415,0.00012373,2]
[394686132,1763885441082,-500.0,0.00012373,2]
[394686133,1763885441092,-500.0,0.00012373,2]
[394686134,1763885441106,-500.0,0.00012373,2]
[394686135,1763885441116,-514.35409581,0.00012373,2]
[394686136,1763885441125,-506.9959062,0.00012373,2]
[394686137,1763885441136,-500.0,0.00012373,2]
[394686138,1763885441145,-500.0,0.00012373,2]
[394686139,1763885441155,-500.0,0.00012373,2]
[394686140,1763885441164,-500.0,0.00012373,2]
[394686141,1763885441174,-500.0,0.00012373,2]
[394686142,1763885441183,-440.47888466,0.00012373,2]
[394686143,1763885441192,-501.40325883,0.00012373,2]
[394686144,1763885441202,-151.0,0.00012373,2]
[394686145,1763885441215,-151.0,0.00012373,2]
[394686146,1763885441225,-151.0,0.00012373,2]
[394686147,1763885441234,-151.0,0.00012373,2]
[394686148,1763885441243,-151.0,0.00012373,2]
[394686149,1763885441254,-151.0,0.00012373,2]
[394686150,1763885441263,-151.0,0.00012373,2]
[394686151,1763885441272,-1502.818616,0.00012373,2]
[394686152,1763885441283,-1502.818616,0.00012373,2]
[394686153,1763885441294,-1502.818616,0.00012373,2]
[394686154,1763885441303,-1502.818616,0.00012373,2]
[394686155,1763885441312,-1189.689954,0.00012373,2]
[394686156,1763885441320,-1189.689954,0.00012373,2]
[394686157,1763885441329,-151.0,0.000124,2]
[394686158,1763885441339,-720.0,0.00012418,2]
[394686159,1763885441349,-1965.09515747,0.00012439,2]
[394686160,1763885441359,-1000.0,0.00012472,2]
[394686161,1763885441368,-1000.0,0.00012472,2]
[394686162,1763885441377,-1000.0,0.00012472,2]
[394686163,1763885441387,-1000.0,0.00012472,2]
[394686164,1763885441396,-1000.0,0.00012472,2]
[394686165,1763885441406,-1000.0,0.00012472,2]
[394686166,1763885441416,-1090.65835526,0.00012472,2]
[394686167,1763885441426,-1000.0,0.00012472,2]
[394686168,1763885441435,-1000.0,0.00012472,2]
[394686169,1763885441444,-874.60005886,0.00012472,2]
[394686170,1763885441454,-166.51836201,0.00012472,2]
[394686171,1763885441464,-151.0,0.000125,2]
[394686172,1763885441473,-151.0,0.000126,2]
[394686173,1763885441482,-151.0,0.000126,2]
[394686174,1763885441619,-151.0,0.000126,2]
[394686175,1763885441673,-194.72792766,0.00012603,2]
[394686176,1763885441682,-533.88981491,0.00012612,2]
[394686177,1763885441692,-254.55924885,0.00012612,2]
[394686178,1763885441702,-500.0,0.00012623,2]
[394686179,1763885441711,-365.8938371,0.00012668,2]
[394686180,1763885441721,-151.0,0.00012668,2]
[394686181,1763885441731,-151.0,0.00012668,2]
[394686182,1763885441740,-151.0,0.00012668,2]
[394686183,1763885441749,-151.0,0.00012668,2]
[394686184,1763885441758,-151.0,0.00012668,2]
[394686185,1763885441767,-171.579022,0.00012668,2]
[394686186,1763885441777,-277.0,0.00012678,2]
[394686187,1763885441786,-277.0,0.00012689,2]
[394686188,1763885441795,-277.0,0.00012697,2]
[394686189,1763885441804,-277.0,0.00012705,2]
[394686190,1763885441813,-1965.09515747,0.00012729,2]
[394686191,1763885441823,-277.0,0.00012732,2]
[394686192,1763885441832,-277.0,0.00012746,2]
[394686193,1763885441843,-151.0,0.00012768,2]
[394686194,1763885441852,-151.0,0.00012768,2]
[394686195,1763885441861,-151.0,0.00012768,2]
[394686196,1763885441871,-151.0,0.00012768,2]
[394686197,1763885441882,-151.0,0.00012768,2]
[394686198,1763885441892,-151.0,0.00012768,2]
[394686199,1763885441902,-1502.818616,0.00012768,2]
[394686200,1763885441912,-1502.818616,0.00012768,2]
[394686201,1763885441922,-1502.818616,0.00012768,2]
[394686202,1763885441931,-1502.818616,0.00012768,2]
[394686203,1763885441940,-151.0,0.00012776,2]
[394686204,1763885441951,-500.0,0.00012776,2]
[394686205,1763885441960,-500.0,0.00012776,2]
[394686206,1763885441970,-151.0,0.00012776,2]
[394686207,1763885441979,-500.0,0.00012776,2]
[394686208,1763885441989,-500.0,0.00012776,2]
[394686209,1763885441999,-500.0,0.00012776,2]
[394686210,1763885442008,-500.0,0.00012776,2]
[394686211,1763885442018,-456.0,0.00012776,2]
[394686212,1763885442027,-445.0,0.00012776,2]
[394686213,1763885442036,-500.0,0.00012776,2]
[394686214,1763885442045,-1502.818616,0.00012776,2]
[394686215,1763885442055,-1502.818616,0.00012776,2]
[394686216,1763885442064,-1502.818616,0.00012776,2]
[394686217,1763885442074,-1502.818625,0.00012776,2]
[394686218,1763885442085,-151.0,0.00012776,2]
[394686219,1763885442096,-500.0,0.00012776,2]
[394686220,1763885442108,-500.0,0.00012776,2]
[394686221,1763885442119,-500.0,0.00012776,2]
[394686222,1763885442129,-599.0,0.00012776,2]
[394686223,1763885442139,-209.24427602,0.00012776,2]
[394686224,1763885442149,-500.0,0.00012776,2]
[394686225,1763885442159,-500.0,0.00012776,2]
[394686226,1763885442168,-500.0,0.00012776,2]
[394686227,1763885442177,-283.54956691,0.00012776,2]
[394686228,1763885442186,-205.78492544,0.00012776,2]
[394686229,1763885442196,-500.0,0.00012776,2]
[394686230,1763885442208,-151.0,0.00012776,2]
[394686231,1763885442220,-151.0,0.00012776,2]
[394686232,1763885442230,-742.0,0.00012776,2]
[394686233,1763885442241,-500.0,0.00012776,2]
[394686234,1763885442250,-500.0,0.00012776,2]
[394686235,1763885442262,-1005.0,0.00012776,2]
[394686236,1763885442273,-500.0,0.00012776,2]
[394686237,1763885442284,-1750.0,0.00012776,2]
[394686238,1763885442295,-151.0,0.00012776,2]
[394686239,1763885442304,-247.19535427,0.00012776,2]
[394686240,1763885442316,-252.80464573,0.00012776,2]
[394686241,1763885442326,-16.8857931,0.00012776,2]
[394686242,1763885442336,-483.1142069,0.00012776,2]
[394686243,1763885442346,-151.0,0.00012776,2]
[394686244,1763885442355,-500.0,0.00012776,2]
[394686245,1763885442364,-500.0,0.00012776,2]
[394686246,1763885442373,-500.0,0.00012776,2]
[394686247,1763885442382,-991.56841196,0.000128,2]
[394686248,1763885442391,-151.0,0.000128,2]
[394686249,1763885442400,-277.0,0.00012831,2]
[394686250,1763885442410,-277.0,0.00012836,2]
[394686251,1763885442419,-277.0,0.00012854,2]
[394686252,1763885442428,-151.0,0.00012877,2]
[394686253,1763885442437,-151.0,0.00012877,2]
[394686254,1763885442447,-151.0,0.00012877,2]
[394686255,1763885442455,-278.239483,0.00012877,2]
[394686256,1763885442465,-277.0,0.00012896,2]
[394686257,1763885442474,-500.0,0.00012897,2]
[394686258,1763885442483,-3477.03901539,0.000129,2]
[394686259,1763885442492,-500.0,0.00012913,2]
[394686260,1763885442501,-562.99932339,0.00012913,2]
[394686261,1763885442511,-151.0,0.00012913,2]
[394686262,1763885442520,-500.0,0.00012913,2]
[394686263,1763885442529,-500.0,0.00012913,2]
[394686264,1763885442539,-500.0,0.00012913,2]
[394686265,1763885442548,-500.0,0.00012913,2]
[394686266,1763885442558,-456.0,0.00012913,2]
[394686267,1763885442567,-445.0,0.00012913,2]
[394686268,1763885442576,-500.0,0.00012913,2]
[394686269,1763885442585,-151.0,0.00012913,2]
[394686270,1763885442594,-500.0,0.00012913,2]
[394686271,1763885442604,-500.0,0.00012913,2]
[394686272,1763885442613,-500.0,0.00012913,2]
[394686273,1763885442622,-599.0,0.00012913,2]
[394686274,1763885442631,-500.0,0.00012913,2]
[394686275,1763885442641,-500.0,0.00012913,2]
[394686276,1763885442651,-500.0,0.00012913,2]
[394686277,1763885442660,-500.0,0.00012913,2]
[394686278,1763885442669,-151.0,0.00012913,2]
[394686279,1763885442678,-151.0,0.00012913,2]
[394686280,1763885442688,-742.0,0.00012913,2]
[394686281,1763885442697,-500.0,0.00012913,2]
[394686282,1763885442707,-1005.0,0.00012913,2]
[394686283,1763885442716,-500.0,0.00012913,2]
[394686284,1763885442725,-1750.0,0.00012913,2]
[394686285,1763885442734,-151.0,0.00012913,2]
[394686286,1763885442744,-500.0,0.00012913,2]
[394686287,1763885442753,-627.64210731,0.00012913,2]
[394686288,1763885442763,-500.0,0.00012913,2]
[394686289,1763885442773,-500.0,0.00012913,2]
[394686290,1763885442782,-500.0,0.00012913,2]
[394686291,1763885442792,-151.0,0.00012913,2]
[394686292,1763885442801,-152.90161,0.00012913,2]
[394686293,1763885442811,-5888.0,0.00012917,2]
[394686294,1763885442821,-151.0,0.00012917,2]
[394686295,1763885442830,-151.0,0.00012917,2]
[394686296,1763885442839,-151.0,0.00012917,2]
[394686297,1763885442850,-481.50833547,0.00012921,2]
[394686300,1763885442860,-414.40228081,0.00012921,2]
[394686303,1763885442870,-501.96961443,0.00012921,2]
[394686307,1763885442880,-509.94445956,0.00012921,2]
[394686309,1763885442890,-501.44793486,0.00012921,2]
[394686312,1763885442899,-508.37402696,0.00012921,2]
[394686315,1763885442909,-1000.0,0.00012921,2]
[394686318,1763885442918,-1000.0,0.00012921,2]
[394686319,1763885442930,-1000.0,0.00012921,2]
[394686320,1763885442940,-1000.0,0.00012921,2]
[394686321,1763885442950,-996.95095002,0.00012921,2]
[394686322,1763885442960,-1000.0,0.00012921,2]
[394686323,1763885442969,-598.3771261,0.00012921,2]
[394686324,1763885442980,-1000.0,0.00012921,2]
[394686325,1763885442990,-1000.0,0.00012921,2]
[394686326,1763885443000,-1000.0,0.00012921,2]
[394686327,1763885443010,-166.71518326,0.00012946,2]
[394686328,1763885443019,-514.67701254,0.00012946,2]
[394686329,1763885443028,-488.00680442,0.00012946,2]
[394686330,1763885443037,-500.0,0.00012946,2]
[394686331,1763885443047,-604.63480434,0.00012946,2]
[394686332,1763885443056,-500.0,0.00012946,2]
[394686333,1763885443065,-500.0,0.00012946,2]
[394686334,1763885443074,-277.0,0.0001299,2]
[394686335,1763885443084,-277.0,0.00012997,2]
[394686336,1763885443093,-277.0,0.00013019,2]
[394686337,1763885443103,-1965.09515747,0.00013019,2]
[394686338,1763885443112,-500.60128405,0.00013036,2]
[394686339,1763885443122,-500.0,0.00013036,2]
[394686340,1763885443131,-500.0,0.00013036,2]
[394686341,1763885443143,-500.0,0.00013036,2]
[394686342,1763885443152,-500.0,0.00013036,2]
[394686343,1763885443161,-500.0,0.0001305,2]
[394686344,1763885443171,-151.0,0.0001305,2]
[394686345,1763885443180,-500.0,0.0001305,2]
[394686346,1763885443189,-500.0,0.0001305,2]
[394686347,1763885443199,-500.0,0.0001305,2]
[394686348,1763885443210,-500.0,0.0001305,2]
[394686349,1763885443222,-456.0,0.0001305,2]
[394686350,1763885443231,-445.0,0.0001305,2]
[394686351,1763885443240,-202.6961032,0.0001305,2]
[394686352,1763885443252,-151.0,0.0001305,2]
[394686353,1763885443262,-500.0,0.0001305,2]
[394686354,1763885443271,-561.75863205,0.0001305,2]
[394686355,1763885443280,-500.0,0.0001305,2]
[394686356,1763885443291,-599.0,0.0001305,2]
[394686357,1763885443302,-500.0,0.0001305,2]
[394686358,1763885443311,-509.6102332,0.0001305,2]
[394686359,1763885443322,-500.0,0.0001305,2]
[394686360,1763885443334,-500.0,0.0001305,2]
[394686361,1763885443343,-151.0,0.0001305,2]
[394686362,1763885443354,-151.0,0.0001305,2]
[394686363,1763885443363,-742.0,0.0001305,2]
[394686364,1763885443372,-1005.0,0.0001305,2]
[394686365,1763885443382,-500.0,0.0001305,2]
[394686366,1763885443392,-1750.0,0.0001305,2]
[394686367,1763885443401,-195.66012895,0.0001305,2]
[394686368,1763885443412,-326.32907209,0.0001305,2]
[394686369,1763885443422,-500.0,0.0001305,2]
[394686370,1763885443432,-500.0,0.0001305,2]
[394686371,1763885443441,-500.0,0.0001305,2]
[394686372,1763885443450,-277.0,0.00013056,2]
[394686373,1763885443459,-277.0,0.0001306,2]
[394686374,1763885443469,-277.0,0.00013082,2]
[394686375,1763885443478,-277.0,0.0001312,2]
[394686376,1763885443487,-150.069,0.00013123,2]
[394686377,1763885443497,-150.106,0.00013123,2]
[394686378,1763885443507,-150.0,0.00013123,2]
[394686379,1763885443518,-150.054,0.00013123,2]
[394686380,1763885443528,-2152.0,0.00013123,2]
[394686381,1763885443537,-989.0,0.00013123,2]
[394686382,1763885443548,-277.0,0.00013133,2]
[394686383,1763885443559,-204.0,0.00013142,2]
[394686384,1763885443570,-277.0,0.00013144,2]
[394686385,1763885443581,-277.0,0.00013144,2]
[394686386,1763885443590,-201.93286099,0.00013151,2]
[394686387,1763885443599,-310.25643502,0.0001316,2]
[394686388,1763885443608,-277.0,0.00013163,2]
[394686389,1763885443618,-277.0,0.0001317,2]
[394686390,1763885443627,-500.0,0.00013171,2]
[394686391,1763885443636,-277.0,0.00013184,2]
[394686392,1763885443645,-500.0,0.00013187,2]
[394686393,1763885443655,-251.06314747,0.00013187,2]
[394686394,1763885443664,-500.0,0.00013187,2]
[394686395,1763885443677,-500.0,0.00013187,2]
[394686396,1763885443687,-500.0,0.00013187,2]
[394686397,1763885443697,-500.0,0.00013187,2]